fUSD/lending_fUSD_20241225
["ID","MTS","AMOUNT","RATE_DAILY","PERIOD"]
[346636187,1735137036546,-557.53,0.00011173,2]
[346636188,1735137036555,-500.0,0.00011173,2]
[346636189,1735137036564,-500.0,0.00011173,2]
[346636190,1735137036574,-500.0,0.00011173,2]
[346636191,1735137036583,-500.0,0.00011173,2]
[346636192,1735137036592,-339.25157924,0.00011173,2]
[346636193,1735137036602,-500.0,0.00011173,2]
[346636194,1735137036611,-855.74,0.00011173,2]
[346636195,1735137036620,-211.77430936,0.00011173,2]
[346636196,1735137036629,-816.89,0.00011173,2]
[346636197,1735137036639,-979.76,0.00011173,2]
[346636198,1735137036648,-5937.77,0.00011173,2]
[346636199,1735137036657,-504.34,0.00011173,2]
[346636200,1735137036670,-500.0,0.00011173,2]
[346636201,1735137036680,-500.0,0.00011173,2]
[346636202,1735137036689,-500.0,0.00011173,2]
[346636203,1735137036698,-538.19,0.00011173,2]
[346636204,1735137036709,-500.0,0.00011173,2]
[346636205,1735137036718,-500.0,0.00011173,2]
[346636206,1735137036727,-550.38,0.00011173,2]
[346636207,1735137036735,-500.0,0.00011173,2]
[346636208,1735137036746,-825.07,0.00011173,2]
[346636209,1735137036759,-621.09,0.00011173,2]
[346636210,1735137036768,-548.51,0.00011173,2]
[346636211,1735137036777,-644.62,0.00011173,2]
[346636212,1735137036786,-624.05,0.00011173,2]
[346636213,1735137036795,-675.57,0.00011173,2]
[346636214,1735137036804,-1345.4,0.00011173,2]
[346636215,1735137036813,-500.0,0.00011173,2]
[346636216,1735137036822,-510.12,0.00011173,2]
[346636217,1735137036831,-695.5,0.00011173,2]
[346636218,1735137036840,-1732.72,0.00011173,2]
[346636219,1735137036849,-500.0,0.00011173,2]
[346636220,1735137036858,-500.0,0.00011173,2]
[346636221,1735137036867,-500.0,0.00011173,2]
[346636222,1735137036876,-500.0,0.00011173,2]
[346636223,1735137036885,-500.0,0.00011173,2]
[346636224,1735137036894,-1337.14,0.00011173,2]
[346636225,1735137036903,-1070.48,0.00011173,2]
[346636226,1735137036912,-500.0,0.00011173,2]
[346636227,1735137036921,-3142.85,0.00011173,2]
[346636228,1735137036930,-554.26,0.00011173,2]
[346636229,1735137036939,-500.0,0.00011173,2]
[346636230,1735137036948,-500.0,0.00011173,2]
[346636231,1735137036957,-702.07,0.00011173,2]
[346636232,1735137036966,-500.0,0.00011173,2]
[346636233,1735137036975,-552.82,0.00011173,2]
[346636234,1735137036984,-500.0,0.00011173,2]
[346636235,1735137036993,-500.0,0.00011173,2]
[346636236,1735137037004,-811.86,0.00011173,2]
[346636237,1735137037013,-1000.0,0.00011173,2]
[346636238,1735137037023,-500.0,0.00011173,2]
[346636239,1735137037032,-684.89,0.00011173,2]
[346636240,1735137037041,-1934.29,0.00011173,2]
[346636241,1735137037051,-1328.95,0.00011173,2]
[346636242,1735137037061,-1294.51,0.00011173,2]
[346636243,1735137037070,-500.0,0.00011173,2]
[346636244,1735137037079,-839.36,0.00011173,2]
[346636245,1735137037088,-500.0,0.00011173,2]
[346636246,1735137037097,-1327.0,0.00011173,2]
[346636247,1735137037106,-500.0,0.00011173,2]
[346636248,1735137037115,-621.68,0.00011173,2]
[346636249,1735137037125,-576.0,0.00011173,2]
[346636250,1735137037134,-436.45415511,0.00011173,2]
[346636251,1735137037143,-1883.45,0.00011173,2]
[346636252,1735137037152,-500.0,0.00011173,2]
[346636253,1735137037161,-500.0,0.00011173,2]
[346636254,1735137037171,-601.62,0.00011173,2]
[346636255,1735137037180,-1288.52,0.00011173,2]
[346636256,1735137037190,-500.0,0.00011173,2]
[346636257,1735137037199,-500.0,0.00011173,2]
[346636258,1735137037209,-1374.56,0.00011173,2]
[346636259,1735137037218,-631.6,0.00011173,2]
[346636260,1735137037227,-3797.88,0.00011173,2]
[346636261,1735137037236,-500.0,0.00011173,2]
[346636262,1735137037245,-500.0,0.00011173,2]
[346636263,1735137037257,-654.06,0.00011173,2]
[346636264,1735137037267,-500.0,0.00011173,2]
[346636265,1735137037276,-500.0,0.00011173,2]
[346636266,1735137037285,-500.0,0.00011173,2]
[346636267,1735137037294,-500.0,0.00011173,2]
[346636268,1735137037304,-500.0,0.00011173,2]
[346636269,1735137037313,-500.0,0.00011173,2]
[346636270,1735137037323,-410.07777015,0.00011173,2]
[346636271,1735137037333,-4229.23,0.00011173,2]
[346636272,1735137037343,-541.03,0.00011173,2]
[346636273,1735137037352,-500.0,0.00011173,2]
[346636274,1735137037361,-500.0,0.00011173,2]
[346636275,1735137037371,-674.61,0.00011173,2]
[346636276,1735137037380,-698.03,0.00011173,2]
[346636277,1735137037390,-934.06,0.00011173,2]
[346636278,1735137037399,-500.0,0.00011173,2]
[346636279,1735137037410,-500.0,0.00011173,2]
[346636280,1735137037419,-1294.03,0.00011173,2]
[346636281,1735137037428,-2907.34,0.00011173,2]
[346636282,1735137037438,-500.0,0.00011173,2]
[346636283,1735137037447,-500.0,0.00011173,2]
[346636284,1735137037456,-500.0,0.00011173,2]
[346636285,1735137037466,-874.62,0.00011173,2]
[346636286,1735137037475,-500.0,0.00011173,2]
[346636287,1735137037484,-1539.55,0.00011173,2]
[346636288,1735137037494,-500.0,0.00011173,2]
[346636289,1735137037503,-2343.28,0.00011173,2]
[346636290,1735137037513,-524.6,0.00011173,2]
[346636291,1735137037522,-625.13,0.00011173,2]
[346636292,1735137037532,-588.12130588,0.00011173,2]
[346636293,1735137038380,-447.500003,0.00011173,2]
[346636294,1735137038391,-5627.37818702,0.00011173,2]
[346636295,1735137038402,-449.23479685,0.00011173,2]
[346636298,1735137038425,-1313.4375164,0.00011173,2]
[346636301,1735137038437,-604.78819085,0.00011173,2]
[346636302,1735137038447,-582.75,0.00011173,2]
[346636304,1735137038457,-573.42180515,0.00011173,2]
[346636316,1735137040134,-313.78819485,0.00011173,2]
[346636317,1735137040145,-200.0,0.00011219,2]
[346636318,1735137040158,-411.71,0.00011223,2]
[346636319,1735137040170,-3457.0,0.0001126,2]
[346636320,1735137040182,-403.33823358,0.00011264,2]
[346636321,1735137040200,-96.66176642,0.00011264,2]
[346636322,1735137040211,-468.03722148,0.00011264,2]
[346636323,1735137040283,-137.31277852,0.00011264,2]
[346636324,1735137040294,-194.09566989,0.00011264,2]
[346636325,1735137040340,-305.90433011,0.00011264,2]
[346636326,1735137040352,-500.0,0.00011264,2]
[346636327,1735137040363,-500.0,0.00011264,2]
[346636328,1735137040374,-151.0,0.00011264,2]
[346636329,1735137040386,-500.0,0.00011264,2]
[346636330,1735137040397,-500.0,0.00011264,2]
[346636331,1735137040408,-500.0,0.00011264,2]
[346636332,1735137040419,-500.0,0.00011264,2]
[346636333,1735137040430,-500.0,0.00011264,2]
[346636334,1735137040442,-547.20310091,0.00011264,2]
[346636335,1735137040454,-500.0,0.00011264,2]
[346636336,1735137040465,-500.0,0.00011264,2]
[346636337,1735137040477,-500.0,0.00011264,2]
[346636338,1735137040490,-500.0,0.00011264,2]
[346636339,1735137040508,-380.76434148,0.00011264,2]
[346636340,1735137040520,-619.67,0.00011264,2]
[346636341,1735137040533,-500.0,0.00011264,2]
[346636342,1735137040545,-500.0,0.00011264,2]
[346636343,1735137040557,-500.0,0.00011264,2]
[346636344,1735137040569,-500.0,0.00011264,2]
[346636345,1735137040580,-506.78,0.00011264,2]
[346636346,1735137040591,-500.0,0.00011264,2]
[346636348,1735137040602,-500.0,0.00011264,2]
[346636350,1735137040614,-725.0,0.00011265,2]
[346636352,1735137040627,-151.0,0.00011265,2]
[346636354,1735137040639,-500.0,0.00011265,2]
[346636357,1735137040651,-500.0,0.00011265,2]
[346636359,1735137040662,-500.0,0.00011265,2]
[346636361,1735137040674,-151.0,0.00011265,2]
[346636363,1735137040686,-382.57394064,0.00011341,2]
[346636365,1735137040696,-500.0,0.00011447,2]
[346636367,1735137040707,-500.0,0.00011447,2]
[346636369,1735137040717,-500.0,0.00011447,2]
[346636371,1735137040729,-500.0,0.00011447,2]
[346636374,1735137040739,-217.95601599,0.00011447,2]
[346636376,1735137040756,-500.0,0.00011447,2]
[346636378,1735137040770,-500.0,0.00011447,2]
[346636380,1735137040783,-500.0,0.00011447,2]
[346636383,1735137040794,-391.36664523,0.00011447,2]
[346636385,1735137040805,-500.0,0.00011447,2]
[346636387,1735137040816,-500.0,0.00011447,2]
[346636389,1735137040826,-452.53934927,0.00011447,2]
[346636391,1735137040836,-500.0,0.00011447,2]
[346636393,1735137040848,-500.0,0.00011447,2]
[346636395,1735137040860,-500.0,0.00011447,2]
[346636397,1735137040871,-500.0,0.00011447,2]
[346636400,1735137040883,-500.0,0.00011447,2]
[346636402,1735137040893,-500.0,0.00011447,2]
[346636404,1735137040907,-500.0,0.00011447,2]
[346636406,1735137040916,-500.0,0.00011447,2]
[346636408,1735137040926,-500.0,0.00011447,2]
[346636410,1735137040938,-500.0,0.00011447,2]
[346636412,1735137040949,-500.0,0.00011447,2]
[346636414,1735137040960,-500.0,0.00011447,2]
[346636416,1735137040970,-500.0,0.00011447,2]
[346636419,1735137040983,-500.0,0.00011447,2]
[346636421,1735137040994,-500.0,0.00011447,2]
[346636423,1735137041009,-500.0,0.00011447,2]
[346636425,1735137041019,-500.0,0.00011447,2]
[346636427,1735137041030,-500.0,0.00011447,2]
[346636429,1735137041040,-622.65,0.00011447,2]
[346636432,1735137041050,-500.0,0.00011447,2]
[346636434,1735137041061,-500.0,0.00011447,2]
[346636436,1735137041071,-500.0,0.00011447,2]
[346636438,1735137041083,-500.0,0.00011447,2]
[346636440,1735137041093,-500.0,0.00011447,2]
[346636442,1735137041104,-500.0,0.00011447,2]
[346636444,1735137041114,-500.0,0.00011447,2]
[346636446,1735137041125,-500.0,0.00011447,2]
[346636449,1735137041136,-500.0,0.00011447,2]
[346636450,1735137041146,-500.0,0.00011447,2]
[346636451,1735137041156,-500.0,0.00011447,2]
[346636452,1735137041167,-500.0,0.00011447,2]
[346636453,1735137041177,-500.0,0.00011447,2]
[346636454,1735137041188,-500.0,0.00011447,2]
[346636455,1735137041199,-500.0,0.00011447,2]
[346636456,1735137041209,-500.0,0.00011447,2]
[346636457,1735137041220,-500.0,0.00011447,2]
[346636458,1735137041230,-151.0,0.00011447,2]
[346636459,1735137041241,-500.0,0.00011447,2]
[346636461,1735137041259,-500.0,0.00011447,2]
[346636463,1735137041270,-218.0,0.00011447,2]
[346636465,1735137041280,-500.0,0.00011447,2]
[346636467,1735137041291,-2136.84,0.00011447,2]
[346636469,1735137041302,-500.0,0.00011447,2]
[346636471,1735137041312,-646.18,0.00011447,2]
[346636473,1735137041322,-515.69,0.00011447,2]
[346636475,1735137041333,-500.0,0.00011447,2]
[346636477,1735137041343,-500.0,0.00011447,2]
[346636480,1735137041354,-500.0,0.00011447,2]
[346636482,1735137041365,-500.0,0.00011447,2]
[346636484,1735137041375,-500.0,0.00011447,2]
[346636486,1735137041385,-500.0,0.00011447,2]
[346636488,1735137041396,-855.74,0.00011447,2]
[346636490,1735137041406,-816.89,0.00011447,2]
[346636492,1735137041417,-979.76,0.00011447,2]
[346636494,1735137041427,-5937.77,0.00011447,2]
[346636496,1735137041438,-504.34,0.00011447,2]
[346636498,1735137041448,-500.0,0.00011447,2]
[346636500,1735137041458,-500.0,0.00011447,2]
[346636502,1735137041468,-500.0,0.00011447,2]
[346636504,1735137041479,-538.19,0.00011447,2]
[346636507,1735137041489,-500.0,0.00011447,2]
[346636509,1735137041502,-500.0,0.00011447,2]
[346636511,1735137041514,-550.38,0.00011447,2]
[346636513,1735137041525,-500.0,0.00011447,2]
[346636515,1735137041537,-825.07,0.00011447,2]
[346636517,1735137041548,-621.09,0.00011447,2]
[346636520,1735137041558,-548.51,0.00011447,2]
[346636522,1735137041569,-644.62,0.00011447,2]
[346636524,1735137041580,-624.05,0.00011447,2]
[346636526,1735137041591,-675.57,0.00011447,2]
[346636528,1735137041602,-1345.4,0.00011447,2]
[346636530,1735137041612,-500.0,0.00011447,2]
[346636532,1735137041623,-510.12,0.00011447,2]
[346636535,1735137041634,-695.5,0.00011447,2]
[346636537,1735137041645,-1732.72,0.00011447,2]
[346636539,1735137041656,-500.0,0.00011447,2]
[346636541,1735137041670,-500.0,0.00011447,2]
[346636543,1735137041680,-500.0,0.00011447,2]
[346636545,1735137041691,-500.0,0.00011447,2]
[346636548,1735137041703,-500.0,0.00011447,2]
[346636550,1735137041714,-1337.14,0.00011447,2]
[346636552,1735137041724,-1070.48,0.00011447,2]
[346636554,1735137041735,-500.0,0.00011447,2]
[346636556,1735137041746,-3142.85,0.00011447,2]
[346636559,1735137041759,-500.0,0.00011447,2]
[346636561,1735137041769,-554.26,0.00011447,2]
[346636563,1735137041780,-500.0,0.00011447,2]
[346636565,1735137041791,-702.07,0.00011447,2]
[346636567,1735137041801,-500.0,0.00011447,2]
[346636569,1735137041811,-552.82,0.00011447,2]
[346636571,1735137041821,-500.0,0.00011447,2]
[346636573,1735137041832,-329.12190505,0.00011447,2]
[346636575,1735137041842,-811.86,0.00011447,2]
[346636578,1735137041852,-1000.0,0.00011447,2]
[346636580,1735137041863,-500.0,0.00011447,2]
[346636582,1735137041873,-684.89,0.00011447,2]
[346636584,1735137041884,-1934.29,0.00011447,2]
[346636586,1735137041894,-1328.95,0.00011447,2]
[346636588,1735137041905,-500.0,0.00011447,2]
[346636590,1735137041915,-1294.51,0.00011447,2]
[346636593,1735137041926,-839.36,0.00011447,2]
[346636595,1735137041936,-500.0,0.00011447,2]
[346636597,1735137041947,-1327.0,0.00011447,2]
[346636599,1735137041957,-500.0,0.00011447,2]
[346636601,1735137041968,-621.68,0.00011447,2]
[346636603,1735137041979,-576.0,0.00011447,2]
[346636605,1735137041990,-1883.45,0.00011447,2]
[346636607,1735137042002,-500.0,0.00011447,2]
[346636609,1735137042013,-500.0,0.00011447,2]
[346636612,1735137042023,-601.62,0.00011447,2]
[346636614,1735137042034,-1288.52,0.00011447,2]
[346636616,1735137042044,-500.0,0.00011447,2]
[346636618,1735137042054,-500.0,0.00011447,2]
[346636620,1735137042065,-1374.56,0.00011447,2]
[346636622,1735137042077,-631.6,0.00011447,2]
[346636624,1735137042087,-3797.88,0.00011447,2]
[346636627,1735137042099,-500.0,0.00011447,2]
[346636629,1735137042109,-500.0,0.00011447,2]
[346636631,1735137042120,-654.06,0.00011447,2]
[346636633,1735137042131,-500.0,0.00011447,2]
[346636635,1735137042141,-500.0,0.00011447,2]
[346636637,1735137042151,-500.0,0.00011447,2]
[346636639,1735137042161,-500.0,0.00011447,2]
[346636641,1735137042172,-500.0,0.00011447,2]
[346636643,1735137042182,-500.0,0.00011447,2]
[346636645,1735137042193,-4229.23,0.00011447,2]
[346636647,1735137042204,-541.03,0.00011447,2]
[346636650,1735137042214,-500.0,0.00011447,2]
[346636652,1735137042225,-500.0,0.00011447,2]
[346636653,1735137042235,-674.61,0.00011447,2]
[346636656,1735137042246,-698.03,0.00011447,2]
[346636658,1735137042258,-934.06,0.00011447,2]
[346636660,1735137042269,-500.0,0.00011447,2]
[346636662,1735137042279,-500.0,0.00011447,2]
[346636664,1735137042289,-1294.03,0.00011447,2]
[346636666,1735137042299,-2907.34,0.00011447,2]
[346636668,1735137042310,-500.0,0.00011447,2]
[346636670,1735137042320,-500.0,0.00011447,2]
[346636672,1735137042330,-500.0,0.00011447,2]
[346636674,1735137042341,-874.62,0.00011447,2]
[346636676,1735137042351,-500.0,0.00011447,2]
[346636678,1735137042361,-1539.55,0.00011447,2]
[346636680,1735137042372,-500.0,0.00011447,2]
[346636683,1735137042382,-2343.28,0.00011447,2]
[346636685,1735137042392,-524.6,0.00011447,2]
[346636687,1735137042403,-625.13,0.00011447,2]
[346636689,1735137042413,-9030.46,0.00011447,2]
[346636691,1735137042423,-582.75,0.00011447,2]
[346636693,1735137042434,-887.21,0.00011447,2]
[346636695,1735137042445,-500.0,0.00011538,2]
[346636697,1735137042456,-605.35,0.00011538,2]
[346636699,1735137042466,-343.53436838,0.00011538,2]
[346636701,1735137042478,-500.0,0.00011538,2]
[346636703,1735137042488,-500.0,0.00011538,2]
[346636705,1735137042498,-500.0,0.00011538,2]
[346636708,1735137042513,-500.0,0.00011538,2]
[346636710,1735137042523,-500.0,0.00011538,2]
[346636712,1735137042534,-500.0,0.00011538,2]
[346636714,1735137042544,-500.0,0.00011538,2]
[346636715,1735137042554,-500.0,0.00011538,2]
[346636717,1735137042565,-500.0,0.00011538,2]
[346636719,1735137042575,-500.0,0.00011538,2]
[346636720,1735137042585,-500.0,0.00011538,2]
[346636721,1735137042595,-619.67,0.00011538,2]
[346636722,1735137042606,-500.0,0.00011538,2]
[346636723,1735137042617,-500.0,0.00011538,2]
[346636724,1735137042629,-500.0,0.00011538,2]
[346636725,1735137042640,-500.0,0.00011538,2]
[346636726,1735137042651,-506.78,0.00011538,2]
[346636727,1735137042662,-500.0,0.00011538,2]
[346636728,1735137042675,-500.0,0.00011538,2]
[346636729,1735137042686,-271.89462663,0.00011539,2]
[346636730,1735137042697,-500.0,0.00011539,2]
[346636731,1735137042707,-500.0,0.00011539,2]
[346636732,1735137042718,-420.0,0.00011543,2]
[346636733,1735137042728,-1500.0,0.000117,4]
[346636734,1735137042739,-500.0,0.00011721,2]
[346636735,1735137042752,-500.0,0.00011721,2]
[346636737,1735137042763,-500.0,0.00011721,2]
[346636738,1735137042774,-500.0,0.00011721,2]
[346636739,1735137042785,-500.0,0.00011721,2]
[346636740,1735137042796,-500.0,0.00011721,2]
[346636741,1735137042806,-500.0,0.00011721,2]
[346636742,1735137042817,-500.0,0.00011721,2]
[346636743,1735137042828,-500.0,0.00011721,2]
[346636744,1735137042839,-500.0,0.00011721,2]
[346636745,1735137042849,-500.0,0.00011721,2]
[346636746,1735137042860,-500.0,0.00011721,2]
[346636747,1735137042870,-500.0,0.00011721,2]
[346636748,1735137042882,-500.0,0.00011721,2]
[346636749,1735137042892,-500.0,0.00011721,2]
[346636750,1735137042903,-500.0,0.00011721,2]
[346636751,1735137042914,-500.0,0.00011721,2]
[346636753,1735137042924,-500.0,0.00011721,2]
[346636755,1735137042934,-500.0,0.00011721,2]
[346636757,1735137042945,-500.0,0.00011721,2]
[346636759,1735137042955,-500.0,0.00011721,2]
[346636761,1735137042966,-500.0,0.00011721,2]
[346636765,1735137042977,-500.0,0.00011721,2]
[346636768,1735137042989,-294.12210245,0.00011721,2]
[346636771,1735137042999,-500.0,0.00011721,2]
[346636773,1735137043013,-500.0,0.00011721,2]
[346636776,1735137043025,-500.0,0.00011721,2]
[346636779,1735137043036,-622.65,0.00011721,2]
[346636781,1735137043047,-500.0,0.00011721,2]
[346636784,1735137043057,-500.0,0.00011721,2]
[346636788,1735137043068,-500.0,0.00011721,2]
[346636790,1735137043078,-500.0,0.00011721,2]
[346636792,1735137043088,-500.0,0.00011721,2]
[346636794,1735137043098,-500.0,0.00011721,2]
[346636795,1735137043108,-500.0,0.00011721,2]
[346636796,1735137043118,-500.0,0.00011721,2]
[346636797,1735137043129,-500.0,0.00011721,2]
[346636798,1735137043138,-500.0,0.00011721,2]
[346636799,1735137043148,-500.0,0.00011721,2]
[346636800,1735137043158,-500.0,0.00011721,2]
[346636801,1735137043167,-500.0,0.00011721,2]
[346636802,1735137043177,-500.0,0.00011721,2]
[346636806,1735137043594,-500.0,0.00011721,2]
[346636807,1735137043614,-500.0,0.00011721,2]
[346636808,1735137043628,-500.0,0.00011721,2]
[346636810,1735137043638,-500.0,0.00011721,2]
[346636811,1735137043648,-151.0,0.00011721,2]
[346636812,1735137043659,-500.0,0.00011721,2]
[346636813,1735137043673,-500.0,0.00011721,2]
[346636814,1735137043683,-2136.84,0.00011721,2]
[346636815,1735137043693,-500.0,0.00011721,2]
[346636816,1735137043703,-515.69,0.00011721,2]
[346636817,1735137043713,-500.0,0.00011721,2]
[346636818,1735137043722,-646.18,0.00011721,2]
[346636819,1735137043732,-500.0,0.00011721,2]
[346636820,1735137043741,-500.0,0.00011721,2]
[346636821,1735137043752,-500.0,0.00011721,2]
[346636822,1735137043761,-500.0,0.00011721,2]
[346636823,1735137043770,-500.0,0.00011721,2]
[346636824,1735137043779,-855.74,0.00011721,2]
[346636825,1735137043788,-816.89,0.00011721,2]
[346636826,1735137043797,-979.76,0.00011721,2]
[346636827,1735137043806,-5937.77,0.00011721,2]
[346636828,1735137043816,-504.34,0.00011721,2]
[346636829,1735137043828,-263.27883934,0.00011721,2]
[346636830,1735137043840,-500.0,0.00011721,2]
[346636831,1735137043850,-500.0,0.00011721,2]
[346636832,1735137043858,-538.19,0.00011721,2]
[346636833,1735137043868,-500.0,0.00011721,2]
[346636834,1735137043878,-500.0,0.00011721,2]
[346636835,1735137043887,-550.38,0.00011721,2]
[346636836,1735137043896,-500.0,0.00011721,2]
[346636837,1735137043906,-825.07,0.00011721,2]
[346636838,1735137043915,-621.09,0.00011721,2]
[346636839,1735137043923,-548.51,0.00011721,2]
[346636840,1735137043933,-644.62,0.00011721,2]
[346636841,1735137043942,-624.05,0.00011721,2]
[346636842,1735137043951,-675.57,0.00011721,2]
[346636843,1735137043960,-1345.4,0.00011721,2]
[346636844,1735137043969,-510.12,0.00011721,2]
[346636845,1735137043979,-500.0,0.00011721,2]
[346636846,1735137043988,-695.5,0.00011721,2]
[346636847,1735137043998,-1732.72,0.00011721,2]
[346636848,1735137044009,-500.0,0.00011721,2]
[346636849,1735137044019,-500.0,0.00011721,2]
[346636850,1735137044028,-500.0,0.00011721,2]
[346636851,1735137044037,-500.0,0.00011721,2]
[346636852,1735137044046,-500.0,0.00011721,2]
[346636853,1735137044055,-1337.14,0.00011721,2]
[346636854,1735137044065,-1070.48,0.00011721,2]
[346636855,1735137044075,-500.0,0.00011721,2]
[346636856,1735137044084,-3142.85,0.00011721,2]
[346636857,1735137044093,-41.12696862,0.00011721,2]
[346636858,1735137044377,-144.36321414,0.00011721,2]
[346636859,1735137044387,-138.23151152,0.00011721,2]
[346636860,1735137044399,-416.02848848,0.00011721,2]
[346636861,1735137044409,-545.02366562,0.00011721,2]
[346636862,1735137044419,-702.07,0.00011721,2]
[346636863,1735137044428,-552.82,0.00011721,2]
[346636864,1735137044437,-500.0,0.00011721,2]
[346636865,1735137044447,-811.86,0.00011721,2]
[346636866,1735137044456,-500.0,0.00011721,2]
[346636867,1735137044465,-1000.0,0.00011721,2]
[346636868,1735137044475,-500.0,0.00011721,2]
[346636869,1735137044484,-684.89,0.00011721,2]
[346636870,1735137044494,-1339.9678459,0.00011721,2]
[346636871,1735137044520,-500.0,0.00010899,2]
[346636872,1735137044530,-814.62,0.00010899,2]
[346636873,1735137044539,-594.3221541,0.00011721,2]
[346636874,1735137044548,-1328.95,0.00011721,2]
[346636875,1735137044558,-500.0,0.00011721,2]
[346636876,1735137044568,-1176.96014387,0.00011721,2]
[346636877,1735137044806,-511.07,0.00010899,2]
[346636878,1735137044817,-1663.96,0.00010899,2]
[346636879,1735137044827,-299.99777802,0.00011173,2]
[346636880,1735137044838,-200.00222198,0.00011173,2]
[346636881,1735137044848,-362.62388892,0.00011173,2]
[346636882,1735137044859,-451.99611108,0.00011173,2]
[346636883,1735137044871,-93.49092394,0.00011173,2]
[346636884,1735137044905,-263.86867618,0.00011173,2]
[346636885,1735137044916,-153.71039988,0.00011173,2]
[346636886,1735137044926,-1663.96,0.00011173,2]
[346636887,1735137044936,-814.62,0.00011447,2]
[346636888,1735137044946,-500.0,0.00011447,2]
[346636889,1735137044955,-511.07,0.00011447,2]
[346636890,1735137044965,-1663.96,0.00011447,2]
[346636891,1735137044975,-117.54985613,0.00011721,2]
[346636892,1735137044985,-839.36,0.00011721,2]
[346636893,1735137044995,-500.0,0.00011721,2]
[346636894,1735137045006,-1327.0,0.00011721,2]
[346636895,1735137045015,-225.79579893,0.00011721,2]
[346636896,1735137045025,-621.68,0.00011721,2]
[346636897,1735137045035,-576.0,0.00011721,2]
[346636898,1735137045045,-1883.45,0.00011721,2]
[346636899,1735137045055,-500.0,0.00011721,2]
[346636900,1735137045064,-500.0,0.00011721,2]
[346636901,1735137045074,-601.62,0.00011721,2]
[346636902,1735137045093,-1288.52,0.00011721,2]
[346636903,1735137045104,-500.0,0.00011721,2]
[346636904,1735137045114,-500.0,0.00011721,2]
[346636905,1735137045124,-1374.56,0.00011721,2]
[346636906,1735137045133,-631.6,0.00011721,2]
[346636907,1735137045143,-3797.88,0.00011721,2]
[346636908,1735137045152,-500.0,0.00011721,2]
[346636909,1735137045162,-500.0,0.00011721,2]
[346636910,1735137045172,-654.06,0.00011721,2]
[346636911,1735137045181,-500.0,0.00011721,2]
[346636912,1735137045190,-336.78913578,0.00011721,2]
[346636913,1735137045200,-500.0,0.00011721,2]
[346636914,1735137045209,-475.86697341,0.00011721,2]
[346636915,1735137045219,-204.76120705,0.00011721,2]
[346636926,1735137045971,-504.93,0.00011,2]
[346636928,1735137045981,-295.23879295,0.00011721,2]
[346636931,1735137045991,-500.0,0.00011721,2]
[346636933,1735137046001,-3102.18742493,0.00011721,2]
[346636937,1735137046146,-1127.04257507,0.00011721,2]
[346636938,1735137046157,-541.03,0.00011721,2]
[346636939,1735137046166,-500.0,0.00011721,2]
[346636940,1735137046176,-500.0,0.00011721,2]
[346636941,1735137046186,-674.61,0.00011721,2]